bitfinex/quotes_ETHUSD_20250215
["timestamp","ask_amount","ask_price","bid_price","bid_amount"]
[1739623914047,3.68545,2713.4,2712.9,3.68608]
[1739623914247,3.68545,2713.4,2713.0,2.217314]
[1739623914983,3.68545,2713.4,2713.0,7.498114]
[1739623916284,3.68548,2713.4,2713.0,7.498114]
[1739623916981,4.47653,2713.5,2713.0,7.498114]
[1739623917152,8.16191,2713.5,2713.0,7.498114]
[1739623917347,4.47653,2713.5,2713.0,7.498114]
[1739623917556,3.68543,2713.4,2713.0,7.498114]
[1739623917755,3.68543,2713.4,2713.1,1.9934194]
[1739623917980,4.47653,2713.5,2713.1,1.9934194]
[1739623918596,3.68541,2713.4,2713.1,1.9934194]
[1739623918894,8.2992661,2713.7,2713.1,1.9934194]
[1739623919095,0.1461461,2713.7,2713.3,3.68552]
[1739623919297,0.1461461,2713.7,2713.5,3.68523]
[1739623919704,0.1461461,2713.7,2713.6,3.68514]
[1739623919903,0.1461461,2713.7,2713.6,4.44184]
[1739623920399,0.1461461,2713.7,2713.6,4.47868252]
[1739623920557,0.1461461,2713.7,2713.6,4.44184]
[1739623920758,0.1461461,2713.7,2713.6,5.29933771]
[1739623923697,0.1461461,2713.7,2713.6,1.61419771]
[1739623924001,0.1461461,2713.7,2713.6,15.64499771]
[1739623925013,4.6140461,2713.7,2713.6,14.0308]
[1739623926310,3.68558,2713.3,2713.0,5.2808]
[1739623926478,3.68582,2713.1,2713.0,5.2808]
[1739623926818,0.7829,2713.2,2713.0,5.2808]
[1739623927806,4.46858,2713.2,2713.0,5.2808]
[1739623928003,0.7829,2713.2,2713.0,5.2808]
[1739623928897,4.47572,2713.4,2713.0,5.2808]
[1739623929096,3.68563,2713.3,2713.0,5.2808]
[1739623929298,3.68568,2713.2,2713.0,5.2808]
[1739623929716,7.37129,2713.3,2713.0,5.2808]
[1739623929889,3.68563,2713.3,2713.0,5.2808]
[1739623930674,0.7903,2713.4,2713.0,5.2808]
[1739623930873,3.68562,2713.3,2713.0,5.2808]
[1739623931557,3.6857,2713.2,2713.0,5.2808]
[1739623931925,3.68582,2713.1,2713.0,5.2808]
[1739623932318,4.47612,2713.1,2713.0,5.2808]
[1739623934156,5.292301,2713.1,2713.0,5.2808]
[1739623935349,4.47612,2713.1,2713.0,5.2808]
[1739623936062,4.47612,2713.1,2712.4,3.68665]
[1739623936063,3.6861,2712.9,2712.4,17.71745]
[1739623936821,3.6861,2712.9,2712.4,14.0308]
[1739623938270,3.68623,2712.8,2712.4,14.0308]
[1739623938464,3.6864,2712.7,2712.4,14.0308]
[1739623938969,7.37238,2712.9,2712.4,14.0308]
[1739623939169,3.68626,2712.8,2712.4,15.80257]
[1739623939365,0.7903,2713.1,2712.4,15.80257]
[1739623939366,3.68663,2712.5,2712.4,5.2808]
[1739623939665,0.8132,2712.5,2712.4,5.2808]
[1739623939831,4.49983,2712.5,2712.4,5.2808]
[1739623940855,3.68717,2712.1,2712.0,5.2808]
[1739623941236,4.50037,2712.1,2712.0,5.2808]
[1739623941640,0.8132,2712.1,2712.0,5.2808]
[1739623941858,3.68705,2712.2,2712.0,5.2808]
[1739623942073,0.8132,2712.4,2712.0,6.68388]
[1739623942273,3.6867,2712.5,2712.0,6.68388]
[1739623942468,1.0892,2712.7,2712.0,6.68388]
[1739623942667,3.68704,2712.2,2712.0,6.68388]
[1739623943048,3.6869,2712.3,2712.0,6.68388]
[1739623943579,3.6869,2712.3,2712.0,5.2808]
[1739623943762,3.68717,2712.1,2712.0,5.2808]
[1739623944278,0.8132,2712.2,2712.0,5.2808]
[1739623944768,4.50032,2712.2,2712.0,5.2808]
[1739623945169,0.8132,2712.2,2712.0,5.2808]
[1739623945769,7.37392,2712.3,2712.0,5.2808]
[1739623945977,7.37391,2712.3,2712.0,5.2808]
[1739623946290,4.77569,2712.7,2712.0,6.68388]
[1739623946470,7.37345,2712.5,2712.1,0.03686805]
[1739623947292,7.37345,2712.5,2712.0,6.68388]
[1739623947779,3.68671,2712.5,2712.0,6.68388]
[1739623947958,3.68682,2712.4,2712.0,6.68388]
[1739623948966,3.68717,2712.1,2712.0,5.2808]
[1739623949767,4.5086,2712.5,2712.0,5.2808]
[1739623950184,4.5086,2712.5,2712.0,5.31766933]
[1739623950370,4.5086,2712.5,2712.0,5.2808]
[1739623951058,3.6867,2712.5,2712.0,5.2808]
[1739623951273,3.6867,2712.5,2712.1,0.93368508]
[1739623951487,7.37344,2712.5,2712.0,5.2808]
[1739623951691,3.68684,2712.4,2712.0,5.2808]
[1739623952812,3.68685,2712.4,2712.0,5.2808]
[1739623953193,7.37345,2712.5,2712.0,5.2808]
[1739623953556,3.6867,2712.5,2712.0,5.2808]
[1739623953771,3.68681,2712.4,2712.0,7.052624]
[1739623954590,1.0979,2712.7,2712.0,7.052624]
[1739623954796,3.68695,2712.3,2712.0,5.2808]
[1739623955893,3.68717,2712.2,2712.0,5.2808]
[1739623956580,3.68717,2712.1,2712.0,5.2808]
[1739623956805,3.68705,2712.2,2712.0,5.2808]
[1739623956970,4.50885,2712.3,2712.0,5.2808]
[1739623958621,3.68695,2712.3,2712.0,5.2808]
[1739623959096,7.37394,2712.3,2712.0,5.2808]
[1739623959323,3.68695,2712.3,2712.0,5.2808]
[1739623961766,4.5086,2712.5,2712.0,5.2808]
[1739623962097,0.8219,2712.7,2712.1,0.7722]
[1739623962302,3.6865,2712.6,2712.1,9.77694954]
[1739623962478,3.6865,2712.6,2712.1,9.74008]
[1739623964074,3.68665,2712.5,2712.1,6.053]
[1739623964473,3.68665,2712.5,2712.1,9.74017]
[1739623964674,3.68665,2712.5,2712.2,1.114325]
[1739623964873,3.96032,2712.8,2712.2,1.114325]
[1739623965071,3.68645,2712.7,2712.2,4.801365]
[1739623965610,3.68555,2713.3,2712.5,0.789]
[1739623965771,3.68555,2713.3,2712.6,5.2808]
[1739623966286,3.68555,2713.3,2712.7,0.03685856]
[1739623966487,3.68555,2713.3,2712.7,3.72319856]
[1739623966810,3.68569,2713.2,2712.7,0.03685856]
[1739623966974,3.68569,2713.2,2712.6,8.96721]
[1739623967306,3.68569,2713.2,2712.6,11.2312579]
[1739623967698,3.68569,2713.2,2712.7,0.03685803]
[1739623968309,3.68555,2713.3,2712.7,9.00399803]
[1739623968486,3.68534,2713.5,2712.8,0.789]
[1739623968685,3.68541,2713.4,2712.9,3.68609]
[1739623968881,3.68534,2713.5,2712.9,5.030233]
[1739623970393,3.68534,2713.5,2712.9,10.311033]
[1739623970577,0.274,2713.6,2712.9,6.625023]
[1739623970777,3.68562,2713.3,2712.9,6.625023]
[1739623971190,7.37127,2713.3,2712.9,6.625023]
[1739623971572,3.68568,2713.2,2712.9,6.625023]
[1739623972578,3.68535,2713.5,2712.9,6.625023]
[1739623972579,3.68552,2713.4,2712.9,6.625023]
[1739623973180,3.68591,2713.1,2712.9,6.625023]
[1739623973481,3.68559,2713.3,2712.9,5.2808]
[1739623974418,3.68544,2713.4,2712.9,5.2808]
[1739623974917,3.68556,2713.3,2712.9,5.2808]
[1739623976018,0.1461461,2713.7,2713.0,4.47483]
[1739623976226,3.68514,2713.6,2713.1,0.03685227]
[1739623976516,3.8312361,2713.7,2713.1,10.3512145]
[1739623976683,7.5163361,2713.7,2713.1,10.31436223]
[1739623976884,3.8312361,2713.7,2713.1,10.31436223]
[1739623977087,0.1461461,2713.7,2713.2,0.82585226]
[1739623977284,0.1461461,2713.7,2713.3,0.74544845]
[1739623977817,0.1461461,2713.7,2713.3,4.43093845]
[1739623978785,3.8312261,2713.7,2713.3,0.74544845]
[1739623978991,3.68522,2713.6,2713.2,0.789]
[1739623979823,3.68514,2713.6,2713.2,0.789]
[1739623980017,3.68541,2713.4,2713.2,0.789]
[1739623980213,3.68514,2713.6,2713.3,0.769]
[1739623981907,0.1461461,2713.7,2713.3,0.769]
[1739623982108,3.68528,2713.5,2713.3,0.769]
[1739623982812,3.8311561,2713.7,2713.3,0.769]
[1739623983014,0.1461461,2713.7,2713.3,0.769]
[1739623983329,3.8312261,2713.7,2713.3,0.769]
[1739623983902,3.68522,2713.6,2713.3,0.769]
[1739623984302,3.8312261,2713.7,2713.3,0.769]
[1739623985598,3.68515,2713.6,2713.3,0.769]
[1739623985798,7.5163561,2713.7,2713.3,0.769]
[1739623985998,3.8312261,2713.7,2713.3,0.769]
[1739623986230,3.68523,2713.6,2713.3,0.769]
[1739623986435,3.68528,2713.5,2713.3,6.0498]
[1739623987725,3.8312261,2713.7,2713.3,6.0498]
[1739623987932,0.1461461,2713.7,2713.3,6.0498]
[1739623988131,3.8311561,2713.7,2713.3,6.65478]
[1739623988947,0.1461461,2713.7,2713.3,10.34032]
[1739623989931,0.1461461,2713.7,2713.4,4.45429]
[1739623990233,0.1461461,2713.7,2713.6,3.68514]
[1739623990433,0.1461461,2713.7,2713.6,4.45414]
[1739623990599,0.1461461,2713.7,2713.6,7.05938712]
[1739623991299,0.1461461,2713.7,2713.6,7.02254373]
[1739623992106,0.1461461,2713.7,2713.6,3.33740373]
[1739623992837,0.1461461,2713.7,2713.6,2.56840373]
[1739623993036,0.1461461,2713.7,2713.5,8.75]
[1739623995328,0.1461461,2713.7,2713.4,6.0526]
[1739623996442,0.1461461,2713.7,2713.4,9.73792]
[1739623996603,0.1461461,2713.7,2713.4,6.0526]
[1739623999557,3.8312361,2713.7,2713.4,6.0526]
[1739623999711,0.1461461,2713.7,2713.4,6.0526]
[1739624000067,0.1461461,2713.7,2713.4,7.961916]
[1739624000230,0.1461461,2713.7,2713.4,11.647276]
[1739624000969,0.1461461,2713.7,2713.4,7.961916]
[1739624001254,0.1461461,2713.7,2713.4,11.647276]
[1739624001981,0.1461461,2713.7,2713.4,7.961916]
[1739624002836,0.1461461,2713.7,2713.0,5.2808]
[1739624002837,3.68562,2713.3,2713.0,5.2808]
[1739624003236,4.47917,2713.6,2713.0,9.00348644]
[1739624003431,3.6853,2713.5,2713.0,5.2808]
[1739624003663,4.47917,2713.6,2713.1,3.68574]
[1739624003877,3.68517,2713.6,2713.1,3.68574]
[1739624004075,7.37043,2713.6,2713.2,0.896654]
[1739624004235,3.68517,2713.6,2713.2,0.896654]
[1739624005537,0.1461461,2713.7,2713.4,0.7718]
[1739624006265,3.8311561,2713.7,2713.4,0.7718]
[1739624006490,0.1461461,2713.7,2713.4,0.7718]
[1739624007088,0.1461461,2713.7,2713.4,5.8675404]
[1739624007373,0.1461461,2713.7,2713.6,4.45694]
[1739624008061,0.1461461,2713.7,2713.6,0.7718]
[1739624009580,0.1461461,2713.7,2713.4,1.4104104]
[1739624009778,0.1461461,2713.7,2713.4,2.1617104]
[1739624010189,0.1461461,2713.7,2713.3,8.75]
[1739624010679,3.68523,2713.6,2713.3,5.2808]
[1739624010856,3.8311761,2713.7,2713.3,5.2808]
[1739624012280,0.1461461,2713.7,2713.3,5.2808]
[1739624012912,0.1461461,2713.7,2713.4,0.7513]
[1739624014092,0.1461461,2713.7,2713.4,4.43668]
[1739624014589,0.1461461,2713.7,2713.4,0.7513]
[1739624015253,3.8311561,2713.7,2713.4,0.7513]
[1739624015458,3.8311561,2713.7,2713.3,5.2808]
[1739624015661,4.6493561,2713.7,2713.3,5.2808]
[1739624015853,3.68523,2713.6,2713.3,5.2808]
[1739624016059,3.68529,2713.5,2713.3,5.2808]
[1739624016277,3.68541,2713.4,2713.3,5.2808]
[1739624018393,3.68529,2713.5,2713.3,5.2808]
[1739624018573,7.37068,2713.5,2713.3,5.2808]
[1739624018966,3.68529,2713.5,2713.3,5.2808]
[1739624019513,7.37064,2713.5,2713.3,5.2808]
[1739624020598,7.37065,2713.5,2713.3,5.2808]
[1739624023097,3.68541,2713.4,2713.3,5.2808]
[1739624023676,4.50521,2713.4,2713.3,5.2808]
[1739624023878,5.32426,2713.4,2713.3,5.2808]
[1739624025404,4.50521,2713.4,2713.3,5.2808]
[1739624028009,4.50521,2713.4,2713.0,5.2808]
[1739624028010,3.68556,2713.3,2713.0,5.2808]
[1739624028511,7.37124,2713.3,2713.0,5.2808]
[1739624028914,0.1461461,2713.7,2713.1,7.98503731]
[1739624029210,0.1461461,2713.7,2713.4,0.7854]
[1739624029504,0.1461461,2713.7,2713.4,1.232481]
[1739624030011,3.8311761,2713.7,2713.4,1.232481]
[1739624030307,3.8311761,2713.7,2713.4,0.7854]
[1739624030974,0.1461461,2713.7,2713.4,0.7854]
[1739624031907,3.8311561,2713.7,2713.4,0.7854]
[1739624032100,3.8311561,2713.7,2713.1,3.68576]
[1739624032303,3.8311561,2713.7,2713.2,0.7854]
[1739624032527,3.8311561,2713.7,2713.2,1.760596]
[1739624032878,3.68522,2713.6,2713.0,6.0662]
[1739624033078,3.8311561,2713.7,2713.0,6.0662]
[1739624033079,3.68528,2713.5,2713.0,6.0662]
[1739624033411,3.68528,2713.5,2713.0,9.75214]
[1739624033622,3.8311561,2713.7,2713.1,3.68581]
[1739624033904,3.8311561,2713.7,2713.1,8.96661]
[1739624034084,3.68516,2713.6,2713.1,10.310411]
[1739624034408,3.8311561,2713.7,2713.1,6.624601]
[1739624034582,3.68531,2713.5,2713.1,6.624601]
[1739624035104,3.8311561,2713.7,2713.1,10.310411]
[1739624035311,3.68517,2713.6,2713.1,10.310411]
[1739624035699,3.68517,2713.6,2713.1,6.624601]
[1739624038225,0.1461461,2713.7,2713.1,6.624601]
[1739624038531,3.68535,2713.5,2713.1,6.624601]
[1739624038673,3.68542,2713.4,2713.1,6.624601]
[1739624039794,3.68542,2713.4,2713.1,5.2808]
[1739624040000,4.48345,2713.5,2713.1,5.2808]
[1739624040001,3.68568,2713.2,2713.1,5.2808]
[1739624041197,3.68555,2713.3,2713.1,5.2808]
[1739624042716,7.37121,2713.3,2713.1,5.2808]
[1739624043017,8.188141,2713.3,2713.1,5.2808]
[1739624043224,4.48395,2713.1,2712.7,5.2808]
[1739624043403,8.16989,2713.1,2712.7,5.2808]
[1739624043912,3.6861,2712.9,2712.7,5.2808]
[1739624044936,7.19929731,2713.4,2712.7,5.2808]
[1739624044937,3.8311761,2713.7,2713.2,0.7508]
[1739624045135,0.1461461,2713.7,2713.2,6.0316]
[1739624045444,0.1461461,2713.7,2713.2,5.2808]
[1739624045445,3.68529,2713.5,2713.2,5.2808]
[1739624045716,0.7981,2713.4,2713.2,5.2808]
[1739624045892,4.48351,2713.4,2713.2,5.2808]
[1739624046101,0.7981,2713.4,2713.2,5.2808]
[1739624046695,4.48352,2713.4,2713.2,5.2808]
[1739624047212,4.48354,2713.4,2713.2,5.2808]
[1739624047623,0.7981,2713.4,2713.2,5.2808]
[1739624048499,3.68529,2713.5,2713.2,5.2808]
[1739624048699,0.1461461,2713.7,2713.2,9.56963]
[1739624049018,0.1461461,2713.7,2713.2,5.88396]
[1739624049832,0.1461461,2713.7,2713.2,9.56963]
[1739624050799,3.8311561,2713.7,2713.2,5.88396]
[1739624051138,3.8311561,2713.7,2713.2,9.5696]
[1739624051443,3.8311561,2713.7,2713.3,0.85142611]
[1739624051743,0.1461461,2713.7,2713.3,4.53695611]
[1739624052036,0.1461461,2713.7,2713.4,4.50373]
[1739624052232,0.1461461,2713.7,2713.4,4.54058]
[1739624052439,0.1461461,2713.7,2713.4,0.85525]
[1739624052600,0.1461461,2713.7,2713.4,1.98286661]
[1739624053237,0.1461461,2713.7,2713.4,5.66826661]
[1739624055045,0.1461461,2713.7,2713.5,1.96623266]
[1739624055737,3.8311561,2713.7,2713.5,1.96623266]
[1739624056038,0.1461461,2713.7,2713.5,1.96623266]
[1739624058643,0.1461461,2713.7,2713.4,10.91222661]
[1739624058847,0.1461461,2713.7,2713.4,10.09382661]
[1739624059834,3.8311561,2713.7,2713.4,6.40841661]
[1739624060035,3.8311561,2713.7,2713.4,5.2808]
[1739624060440,0.1461461,2713.7,2713.4,5.2808]
[1739624060942,3.8311661,2713.7,2713.4,5.2808]
[1739624061161,0.8009,2713.6,2713.4,5.2808]
[1739624061314,4.48606,2713.6,2713.4,5.2808]
[1739624061711,3.68527,2713.5,2713.4,5.2808]
[1739624062643,4.48617,2713.5,2713.4,5.2808]
[1739624066659,3.6855,2713.4,2712.8,3.6862]
[1739624068250,0.8009,2713.5,2712.8,3.6862]
[1739624068454,4.48624,2713.5,2712.8,3.6862]
[1739624068656,3.68544,2713.4,2712.8,3.6862]
[1739624068955,4.6259561,2713.7,2712.9,0.8181]
[1739624069153,0.27,2713.6,2713.1,3.68569]
[1739624070364,3.95514,2713.6,2712.9,0.8181]
[1739624070529,3.68542,2713.4,2712.9,4.50417]
[1739624070734,7.64036,2713.6,2713.0,3.68585]
[1739624071238,7.64039,2713.6,2713.0,3.68585]
[1739624071643,7.64039,2713.6,2713.0,4.58457223]
[1739624072571,7.64039,2713.6,2713.0,9.86537223]
[1739624072863,0.1461461,2713.7,2713.3,3.68547]
[1739624073066,0.1461461,2713.7,2713.4,0.8181]
[1739624077877,0.1461461,2713.7,2713.4,4.50341]
[1739624078082,0.1461461,2713.7,2713.4,5.322296]
[1739624078486,0.1461461,2713.7,2713.4,10.603096]
[1739624079470,0.1461461,2713.7,2713.5,3.68524]
[1739624079673,0.1461461,2713.7,2713.5,3.72209048]
[1739624079846,0.1461461,2713.7,2713.5,3.68524]
[1739624080046,0.1461461,2713.7,2713.5,5.1140876]
[1739624081483,0.1461461,2713.7,2713.6,3.68514]
[1739624081672,0.1461461,2713.7,2713.5,5.1140876]
[1739624082552,0.1461461,2713.7,2713.5,8.7992676]
[1739624083087,0.1461461,2713.7,2713.5,5.1140276]
[1739624083487,0.1461461,2713.7,2713.6,4.80643276]
[1739624083789,0.1461461,2713.7,2713.6,5.55683276]
[1739624084355,0.1461461,2713.7,2713.6,19.58763276]
[1739624093716,0.1461461,2713.7,2713.6,20.13763276]
[1739624105715,0.1461461,2713.7,2713.6,19.58763276]
[1739624106040,0.1461461,2713.7,2713.6,14.0308]
[1739624106599,0.1461461,2713.7,2713.6,17.71594]
[1739624110347,0.1461461,2713.7,2713.6,18.26594]
[1739624110508,0.1461461,2713.7,2713.6,22.04654]
[1739624116076,6.1e-06,2713.7,2713.6,22.23298066]
[1739624116227,6.1e-06,2713.7,2713.6,25.29663245]
[1739624118672,6.1e-06,2713.7,2713.6,33.56463245]
[1739624119878,6.1e-06,2713.7,2713.6,29.04759179]
[1739624120059,6.1e-06,2713.7,2713.6,22.2988]
[1739624120693,4.4667061,2713.7,2713.6,13.5488]
[1739624121163,4.4667061,2713.7,2713.6,8.268]
[1739624121333,0.7817061,2713.7,2713.6,8.268]
[1739624123492,0.7817061,2713.7,2713.3,8.75]
[1739624123687,0.7817061,2713.7,2713.3,10.52164]
[1739624123891,0.7817061,2713.7,2713.4,7.37064]
[1739624124059,6.1e-06,2713.7,2713.5,3.68517]
[1739624126077,6.1e-06,2713.7,2713.5,12.43517]
[1739624127065,6.1e-06,2713.7,2713.5,8.75]
[1739624127453,0.761,2713.6,2713.5,8.75]
[1739624127952,4.44614,2713.6,2713.5,8.75]
[1739624128256,5.25926261,2713.6,2713.5,8.75]
[1739624128661,0.761,2713.6,2713.5,8.75]
[1739624130276,4.44614,2713.6,2713.5,8.75]
[1739624130990,0.761,2713.6,2713.5,8.75]
[1739624131195,4.44614,2713.6,2713.5,8.75]
[1739624132105,4.44614,2713.6,2713.1,17.71657]
[1739624133789,4.44614,2713.6,2713.1,14.0308]
[1739624134501,3.68542,2713.4,2713.1,14.0308]
[1739624134676,4.44614,2713.6,2713.1,14.0308]
[1739624134881,3.68531,2713.5,2713.1,14.0308]
[1739624135095,0.7576,2713.4,2713.1,14.0308]
[1739624136108,0.7576,2713.4,2713.1,17.7166]
[1739624136310,0.7576,2713.4,2713.1,19.856864]
[1739624139307,0.7576,2713.4,2713.1,23.542594]
[1739624139714,0.7576,2713.4,2713.1,19.856794]
[1739624140741,6.1e-06,2713.7,2713.4,3.68537]
[1739624140906,6.1e-06,2713.7,2713.4,3.68533]
[1739624141508,6.1e-06,2713.7,2713.3,3.68552]
[1739624141708,6.1e-06,2713.7,2713.3,7.37104]
[1739624141907,6.1e-06,2713.7,2713.4,3.68537]
[1739624142216,6.1e-06,2713.7,2713.3,4.54579226]
[1739624142369,6.1e-06,2713.7,2713.3,8.23126226]
[1739624142575,6.1e-06,2713.7,2713.3,4.54574226]
[1739624143409,6.1e-06,2713.7,2713.5,3.68527]
[1739624143709,6.1e-06,2713.7,2713.5,4.50837123]
[1739624144114,6.1e-06,2713.7,2713.5,18.53917123]
[1739624146529,6.1e-06,2713.7,2713.5,18.53910123]
[1739624146684,6.1e-06,2713.7,2713.5,22.22430123]
[1739624146884,6.1e-06,2713.7,2713.5,18.53910123]
[1739624147327,6.1e-06,2713.7,2713.5,22.22430123]
[1739624147494,6.1e-06,2713.7,2713.5,18.53910123]
[1739624147695,6.1e-06,2713.7,2713.6,6.37185012]
[1739624149013,6.1e-06,2713.7,2713.6,6.40869575]
[1739624149927,6.1e-06,2713.7,2713.6,20.43949575]
[1739624150128,6.1e-06,2713.7,2713.6,20.40265012]
[1739624150422,6.1e-06,2713.7,2713.6,19.56985012]
[1739624153747,6.1e-06,2713.7,2713.6,20.40265012]
[1739624161449,6.1e-06,2713.7,2713.6,19.56985012]
[1739624162146,6.1e-06,2713.7,2713.6,15.88471012]
[1739624162348,6.1e-06,2713.7,2713.6,19.56985012]
[1739624163951,6.1e-06,2713.7,2713.6,20.32575012]
[1739624164127,6.1e-06,2713.7,2713.6,19.56985012]
[1739624164445,6.1e-06,2713.7,2713.6,15.88471012]
[1739624164658,6.1e-06,2713.7,2713.6,19.56985012]
[1739624164859,0.7835061,2713.7,2713.6,14.0308]
[1739624167772,0.7835061,2713.7,2713.6,5.2808]
[1739624168636,6.1e-06,2713.7,2713.6,8.96594]
[1739624169732,6.1e-06,2713.7,2713.6,5.2808]
[1739624169937,0.7835061,2713.7,2713.6,5.2808]
[1739624172091,4.4685061,2713.7,2713.5,0.1496]
[1739624172256,4.46864,2713.6,2713.5,0.1496]
[1739624172661,0.7835,2713.6,2713.5,0.1496]
[1739624174490,6.1e-06,2713.7,2713.5,0.1496]
[1739624174696,6.1e-06,2713.7,2713.5,3.8348]
[1739624174854,6.1e-06,2713.7,2713.5,0.90529807]
[1739624175560,6.1e-06,2713.7,2713.5,4.59055807]
[1739624175767,6.1e-06,2713.7,2713.6,3.68514]
[1739624176749,6.1e-06,2713.7,2713.6,17.71594]
[1739624181167,6.1e-06,2713.7,2713.6,18.53264]
[1739624181349,6.1e-06,2713.7,2713.6,20.84495981]
[1739624182205,6.1e-06,2713.7,2713.6,20.02825981]
[1739624182389,6.1e-06,2713.7,2713.6,17.71594]
[1739624182594,6.1e-06,2713.7,2713.6,14.0308]
[1739624183113,0.8206061,2713.7,2713.6,14.0308]
[1739624185594,0.8206061,2713.7,2713.6,5.2808]
[1739624191725,4.5056061,2713.7,2713.6,5.2808]
[1739624192216,0.8206061,2713.7,2713.6,5.2808]
[1739624192596,4.5056061,2713.7,2713.6,5.2808]
[1739624193699,0.8206061,2713.7,2713.6,5.2808]
[1739624195383,4.5056061,2713.7,2713.6,5.2808]
[1739624196730,0.8206061,2713.7,2713.6,5.2808]
[1739624197252,4.5056061,2713.7,2713.6,5.2808]
[1739624199031,5.32465471,2713.7,2713.6,5.2808]
[1739624200615,3.68514,2713.6,2713.5,0.1496]
[1739624202902,4.49234,2713.6,2713.5,0.1496]
[1739624203990,6.70434,2713.6,2713.5,0.1496]
[1739624204196,11.39955475,2713.6,2713.5,0.1496]
[1739624204392,3.68636,2712.7,2712.6,13.5508]
[1739624210519,3.68636,2712.7,2711.5,7.92170864]
[1739624210520,3.68727,2712.1,2711.9,6.0587]
[1739624210721,3.68731,2712.0,2711.9,14.8087]
[1739624211537,3.68731,2712.0,2711.9,14.0308]
[1739624211732,3.68731,2712.0,2711.9,5.2808]
[1739624211936,4.505488,2712.0,2711.9,5.2808]
[1739624212235,8.81192828,2712.0,2711.9,5.2808]
[1739624214627,4.49451,2712.0,2711.9,5.2808]
[1739624214803,3.95231,2712.0,2711.9,5.2808]
[1739624215308,3.95231,2712.0,2711.6,0.7779]
[1739624215605,3.68731,2712.0,2711.6,0.7779]
[1739624216929,3.9523,2712.1,2711.6,0.81477655]
[1739624217129,3.9523,2712.1,2711.7,0.97835365]
[1739624217636,3.68731,2712.0,2711.7,0.97835365]
[1739624218208,3.68731,2712.0,2711.6,0.7779]
[1739624218601,3.68731,2712.0,2711.6,0.81477471]
[1739624220332,3.68731,2712.0,2711.6,0.7779]
[1739624221246,3.68748,2711.9,2711.7,5.2808]
[1739624221443,3.68731,2712.0,2711.7,5.2808]
[1739624222717,0.265,2712.1,2711.7,5.2808]
[1739624222916,0.265,2712.1,2711.7,6.25914444]
[1739624223416,3.9522,2712.1,2711.7,6.25914444]
[1739624223646,0.265,2712.1,2711.7,6.25914444]
[1739624224051,7.27424,2712.2,2711.8,0.823]
[1739624224258,3.58713,2712.2,2711.8,0.823]
[1739624224550,7.27425,2712.2,2711.8,1.89999544]
[1739624226046,3.58713,2712.2,2711.8,1.89999544]
[1739624226615,1.0722,2712.4,2711.8,1.07699544]
[1739624226954,3.68732,2712.0,2711.7,6.1038]
[1739624227727,7.37424,2712.2,2711.7,6.1038]
[1739624227929,3.68707,2712.2,2711.7,6.1038]
[1739624228346,7.37421,2712.2,2711.7,6.1038]
[1739624228665,7.37421,2712.2,2711.8,0.979165]
[1739624229371,0.7474836,2712.5,2711.9,0.7858]
[1739624229570,3.6866,2712.6,2712.1,4.4729]
[1739624229756,3.68659,2712.6,2712.1,0.7858]
[1739624229934,3.68663,2712.5,2712.2,0.447302]
[1739624230238,3.68678,2712.4,2712.2,0.447302]
[1739624230442,3.68678,2712.4,2712.1,0.7858]
[1739624233672,7.37368,2712.4,2712.1,0.7858]
[1739624233892,7.37363,2712.4,2712.1,0.7858]
[1739624234051,3.68678,2712.4,2712.1,0.7858]
[1739624234370,0.8162,2712.5,2712.1,0.7858]
[1739624234537,3.68667,2712.5,2712.2,0.95358]
[1739624236376,7.37341,2712.5,2712.2,0.95358]
[1739624237674,3.68679,2712.4,2712.2,0.95358]
[1739624238043,7.37342,2712.5,2712.2,0.95358]
[1739624238242,3.68667,2712.5,2712.2,0.95358]
[1739624239053,3.68667,2712.5,2712.2,6.23438]
[1739624240282,3.68667,2712.5,2712.3,1.070735]
[1739624240905,3.95146,2712.7,2712.3,1.070735]
[1739624241101,3.6865,2712.6,2712.3,6.351535]
[1739624241277,0.265,2712.7,2712.3,10.038365]
[1739624241585,3.68623,2712.8,2712.4,0.7519]
[1739624242283,3.95109,2712.9,2712.4,6.0327]
[1739624242968,3.6863,2712.8,2712.4,6.0327]
[1739624243547,3.68661,2712.6,2712.4,6.0327]
[1739624243761,3.68661,2712.6,2712.4,5.2808]
[1739624245874,3.68659,2712.6,2712.4,5.2808]
[1739624247013,3.68663,2712.5,2712.4,5.2808]
[1739624253183,0.265,2712.5,2712.4,5.2808]
[1739624254520,3.6863,2712.8,2712.4,5.2808]
[1739624254810,0.265,2712.7,2712.4,5.2808]
[1739624255017,3.6863,2712.8,2712.4,5.2808]
[1739624255313,3.9513,2712.8,2712.4,5.2808]
[1739624255483,3.68638,2712.7,2712.4,5.2808]
[1739624256116,3.95095,2713.0,2712.5,0.8168]
[1739624256282,3.68611,2712.9,2712.5,0.8168]
[1739624258015,7.63701,2713.0,2712.5,0.8168]
[1739624258523,3.68615,2712.9,2712.5,0.8168]
[1739624259901,3.68615,2712.9,2712.5,6.0976]
[1739624260215,3.68611,2712.9,2712.5,6.0976]
[1739624261989,3.95095,2713.0,2712.5,6.0976]
[1739624262202,7.63703,2713.0,2712.5,6.0976]
[1739624262826,7.637,2713.0,2712.5,6.0976]
[1739624263027,3.68609,2712.9,2712.5,6.0976]
[1739624263183,3.68609,2712.9,2712.5,6.64300611]
[1739624263391,7.63701,2713.0,2712.5,10.32961611]
[1739624263920,3.95095,2713.0,2712.5,10.32961611]
[1739624264123,3.95095,2713.0,2712.5,6.64300611]
[1739624264495,3.68617,2712.9,2712.5,6.64300611]
[1739624265832,3.95095,2713.0,2712.5,6.64300611]
[1739624266635,7.63703,2713.0,2712.5,6.64300611]
[1739624267333,3.95095,2713.0,2712.5,6.64300611]
[1739624267635,3.68618,2712.9,2712.5,6.64300611]
[1739624268934,3.68627,2712.8,2712.5,6.64300611]
[1739624276442,3.68627,2712.8,2712.5,6.0976]
[1739624278565,3.68618,2712.9,2712.5,6.0976]
[1739624278566,3.68639,2712.7,2712.5,6.0976]